bitfinex-derivatives/quotes_BNBF0:USTF0_20250507
["timestamp","ask_amount","ask_price","bid_price","bid_amount"]
[1746621337473,0.28610304,608.72,607.8,2.589]
[1746621337673,0.30217315,608.71,607.8,2.589]
[1746621340469,0.28610539,608.7,607.8,2.589]
[1746621340772,0.30217315,608.69,607.8,2.589]
[1746621341970,0.28610539,608.7,607.8,2.589]
[1746621343074,0.30217566,608.69,607.8,2.589]
[1746621343570,0.28610774,608.68,607.8,2.589]
[1746621343969,0.30217566,608.67,607.8,2.589]
[1746621345775,0.30217566,608.67,607.81,0.32905019]
[1746621346476,0.28609363,608.68,607.81,0.32905019]
[1746621346674,0.30217566,608.67,607.81,0.32905019]
[1746621346978,0.28609363,608.68,607.81,0.32905019]
[1746621347275,0.30217256,608.67,607.81,0.32905019]
[1746621348274,0.30217256,608.67,607.81,0.96305019]
[1746621348777,0.28609363,608.68,607.81,0.96305019]
[1746621349080,0.30216858,608.67,607.81,0.96305019]
[1746621349477,0.28598548,608.68,607.81,1.61605019]
[1746621349675,0.28598548,608.68,607.81,2.28705019]
[1746621350677,0.30216858,608.67,607.81,2.28705019]
[1746621351579,0.28598548,608.68,607.81,2.28705019]
[1746621352175,1.25472154,609.59,607.81,2.28705019]
[1746621352376,0.32810013,609.57,607.81,2.28705019]
[1746621352577,0.28598548,608.68,607.81,2.28705019]
[1746621352781,0.30217262,608.67,607.81,2.28705019]
[1746621353577,0.30217262,609.56,607.81,2.28705019]
[1746621353781,0.30217262,609.55,607.81,2.28705019]
[1746621353977,0.58816045,609.55,607.81,2.28705019]
[1746621354184,0.30217262,609.54,607.81,2.28705019]
[1746621354379,0.32812705,609.52,607.81,2.28705019]
[1746621354780,0.32812705,609.52,607.81,3.03005019]
[1746621355182,0.30217262,609.51,607.81,3.03005019]
[1746621355482,0.3281432,609.49,607.81,3.03005019]
[1746621355682,0.30217262,609.48,607.81,3.03005019]
[1746621355882,0.32815935,609.46,607.81,3.03005019]
[1746621356482,0.30217262,609.45,607.81,3.03005019]
[1746621356784,0.30217262,609.44,607.81,3.03005019]
[1746621356981,1.55689416,609.44,607.81,3.03005019]
[1746621357179,0.30217262,609.43,607.81,3.03005019]
[1746621357382,0.32818627,609.41,607.81,3.03005019]
[1746621357784,0.30217262,609.4,607.81,3.03005019]
[1746621357980,0.32820243,609.38,607.81,3.03005019]
[1746621358383,0.30217262,609.37,607.81,3.03005019]
[1746621358583,0.32821859,609.35,607.81,3.03005019]
[1746621358883,0.30217974,609.34,607.81,3.03005019]
[1746621359080,0.32823475,609.32,607.81,3.03005019]
[1746621359479,0.30217974,609.31,607.81,3.03005019]
[1746621359783,0.32825091,609.29,607.81,3.03005019]
[1746621359984,0.30217974,609.28,607.81,3.03005019]
[1746621360284,0.30217974,609.27,607.81,3.03005019]
[1746621360580,0.30217974,609.26,607.81,3.03005019]
[1746621360985,0.30217974,609.25,607.81,3.03005019]
[1746621361185,0.30217974,609.24,607.81,3.03005019]
[1746621361580,0.30217974,609.23,607.81,3.03005019]
[1746621361781,0.30217974,609.22,607.81,3.03005019]
[1746621362082,0.30217974,609.21,607.81,3.03005019]
[1746621362485,0.30217974,609.2,607.81,3.03005019]
[1746621362785,0.30217974,609.19,607.81,3.03005019]
[1746621362984,0.30217974,609.18,607.81,3.03005019]
[1746621363286,0.30217974,609.17,607.81,3.03005019]
[1746621363585,0.30217974,609.16,607.81,3.03005019]
[1746621363887,0.30217974,609.15,607.81,3.03005019]
[1746621364187,0.30217974,609.14,607.81,3.03005019]
[1746621364488,0.28601133,609.14,607.81,3.03005019]
[1746621364788,0.30217974,609.13,607.81,3.03005019]
[1746621367487,0.30217974,609.28,607.81,3.03005019]
[1746621367687,0.28602896,609.12,607.81,3.03005019]
[1746621367888,0.30217974,609.28,607.81,3.03005019]
[1746621368081,0.58819225,609.11,607.81,3.03005019]
[1746621368388,0.30217974,609.11,607.81,3.03005019]
[1746621368584,0.30217974,609.1,607.81,3.03005019]
[1746621368788,0.58821223,609.1,607.81,3.03005019]
[1746621368989,0.28603249,609.1,607.81,3.03005019]
[1746621369189,0.30217974,609.09,607.81,3.03005019]
[1746621373486,0.28603367,609.08,607.81,3.03005019]
[1746621373686,0.30217974,609.07,607.81,3.03005019]
[1746621376493,0.28603602,609.06,607.81,3.03005019]
[1746621377189,0.30217974,609.05,607.81,3.03005019]
[1746621382591,0.28601839,609.04,607.81,3.03005019]
[1746621382789,0.30217974,609.03,607.81,3.03005019]
[1746621387095,0.32825091,609.29,607.81,3.03005019]
[1746621387396,0.30215692,609.28,607.81,3.03005019]
[1746621387594,0.63041861,609.27,607.81,3.03005019]
[1746621387799,0.32826707,609.26,607.81,3.03005019]
[1746621388001,0.63042399,609.26,607.81,3.03005019]
[1746621388299,0.30215692,609.25,607.81,3.03005019]
[1746621388599,0.32827785,609.24,607.81,3.03005019]
[1746621388795,0.63043477,609.24,607.81,3.03005019]
[1746621388997,0.30215692,609.23,607.81,3.03005019]
[1746621389192,0.32828863,609.22,607.81,3.03005019]
[1746621389397,0.63044555,609.22,607.81,3.03005019]
[1746621389699,0.30215692,609.21,607.81,3.03005019]
[1746621389893,0.3282994,609.2,607.81,3.03005019]
[1746621390199,0.30215692,609.19,607.81,3.03005019]
[1746621390400,0.32831018,609.18,607.81,3.03005019]
[1746621390701,0.6304671,609.18,607.81,3.03005019]
[1746621390994,0.30215692,609.17,607.81,3.03005019]
[1746621393499,0.32832096,609.16,607.81,3.03005019]
[1746621393899,0.30215692,609.15,607.81,3.03005019]
[1746621394100,0.32833174,609.14,607.81,3.03005019]
[1746621394497,0.30215692,609.13,607.81,3.03005019]
[1746621394700,0.63049405,609.13,607.81,3.03005019]
[1746621394900,0.32833713,609.13,607.81,3.03005019]
[1746621395101,0.30215645,609.12,607.81,3.03005019]
[1746621397502,0.28603719,609.11,607.81,3.03005019]
[1746621397703,0.30215645,609.1,607.81,3.03005019]
[1746621400506,0.28603954,609.09,607.81,3.03005019]
[1746621401004,0.30215645,609.08,607.81,3.03005019]
[1746621403508,0.30215645,609.12,607.81,3.03005019]
[1746621403706,0.2860419,609.07,607.81,3.03005019]
[1746621404101,0.30215645,609.06,607.81,3.03005019]
[1746621404707,0.2860419,609.07,607.81,3.03005019]
[1746621406309,0.32833713,609.13,607.81,3.03005019]
[1746621406503,0.28603719,609.06,607.81,3.03005019]
[1746621406703,0.58820475,609.06,607.81,3.03005019]
[1746621407103,0.30216756,609.05,607.81,3.03005019]
[1746621409513,0.28604542,609.04,607.81,3.03005019]
[1746621410213,0.30216756,609.03,607.81,3.03005019]
[1746621412617,0.28606188,609.02,607.81,3.03005019]
[1746621413017,0.30216756,609.01,607.81,3.03005019]
[1746621415420,0.28606423,609.0,607.81,3.03005019]
[1746621415920,0.30216756,608.99,607.81,3.03005019]
[1746621418522,0.28606658,608.98,607.81,3.03005019]
[1746621419023,0.30218473,608.97,607.81,3.03005019]
[1746621421626,0.30218473,608.96,607.81,3.03005019]
[1746621422025,0.30218473,608.95,607.81,3.03005019]
[1746621422226,0.30218473,608.94,607.81,3.03005019]
[1746621422526,0.30218473,608.93,607.81,3.03005019]
[1746621422928,0.30218473,608.97,607.81,3.03005019]
[1746621424628,0.28608069,608.96,607.81,3.03005019]
[1746621425029,0.30218473,608.95,607.81,3.03005019]
[1746621427526,0.30218473,609.12,607.81,3.03005019]
[1746621427729,0.28608305,608.94,607.81,3.03005019]
[1746621427930,0.63053264,609.11,607.81,3.03005019]
[1746621428130,0.30218473,608.93,607.81,3.03005019]
[1746621428326,0.63053803,609.1,607.81,3.03005019]
[1746621428526,0.32835869,609.09,607.81,3.03005019]
[1746621428726,0.63054342,609.09,607.81,3.03005019]
[1746621429030,0.30218473,609.08,607.81,3.03005019]
[1746621429230,0.58825249,609.08,607.81,3.03005019]
[1746621429432,0.30218473,609.07,607.81,3.03005019]
[1746621429625,0.6305596,609.06,607.81,3.03005019]
[1746621429926,0.32838026,609.05,607.81,3.03005019]
[1746621430128,0.63056499,609.05,607.81,3.03005019]
[1746621430329,0.30218473,609.04,607.81,3.03005019]
[1746621430525,0.32839104,609.03,607.81,3.03005019]
[1746621431027,0.30218473,609.02,607.81,3.03005019]
[1746621431232,0.32840183,609.01,607.81,3.03005019]
[1746621431731,0.30218473,609.0,607.81,3.03005019]
[1746621431927,0.32841261,608.99,607.81,3.03005019]
[1746621432330,0.30218473,608.98,607.81,3.03005019]
[1746621433427,0.28608422,608.97,607.81,3.03005019]
[1746621433931,0.30218473,608.96,607.81,3.03005019]
[1746621436629,0.30218473,608.98,607.81,3.03005019]
[1746621437037,0.32841261,608.99,607.81,3.03005019]
[1746621437538,0.58827368,608.98,607.81,3.03005019]
[1746621437836,0.3022118,608.97,607.81,3.03005019]
[1746621438130,0.3022118,608.96,607.81,3.03005019]
[1746621438530,0.3022118,608.97,607.81,3.03005019]
[1746621438734,0.3022118,608.96,607.81,3.03005019]
[1746621439135,0.3022118,608.95,607.81,3.03005019]
[1746621439538,0.2860854,608.95,607.81,3.03005019]
[1746621439835,0.3022111,608.94,607.81,3.03005019]
[1746621441937,0.3022111,608.93,607.81,3.03005019]
[1746621442232,0.3022111,608.92,607.81,3.03005019]
[1746621442637,0.3022111,608.91,607.81,3.03005019]
[1746621442936,0.3022111,608.94,607.81,3.03005019]
[1746621443136,0.2860854,608.95,607.81,3.03005019]
[1746621443433,0.30222437,608.94,607.81,3.03005019]
[1746621445538,0.28608893,608.93,607.81,3.03005019]
[1746621445939,0.30222437,608.92,607.81,3.03005019]
[1746621448439,0.28609128,608.91,607.81,3.03005019]
[1746621448840,0.30222437,608.9,607.81,3.03005019]
[1746621451443,0.28609363,608.89,607.81,3.03005019]
[1746621452041,0.30222437,608.88,607.81,3.03005019]
[1746621456449,0.28609363,608.89,607.81,3.03005019]
[1746621456649,0.30217578,608.88,607.81,3.03005019]
[1746621459750,0.32841261,608.99,607.81,3.03005019]
[1746621460047,0.30217291,608.98,607.81,3.03005019]
[1746621462949,0.32841261,608.99,607.81,3.03005019]
[1746621463355,0.30217348,608.98,607.81,3.03005019]
[1746621487778,0.30217348,608.97,607.81,3.03005019]
[1746621488079,0.30217348,608.96,607.81,3.03005019]
[1746621488374,0.30217348,608.98,607.81,3.03005019]
[1746621488677,0.30217348,608.97,607.81,3.03005019]
[1746621488979,0.30217348,608.96,607.81,3.03005019]
[1746621489378,0.30217348,608.98,607.81,3.03005019]
[1746621489778,0.30217348,608.97,607.81,3.03005019]
[1746621490079,0.30217348,608.96,607.81,3.03005019]
[1746621490375,0.30217348,608.95,607.81,3.03005019]
[1746621490775,0.30217348,608.98,607.81,3.03005019]
[1746621491280,0.30217348,608.97,607.81,3.03005019]
[1746621491980,0.30217348,608.98,607.81,3.03005019]
[1746621492280,0.30217348,608.97,607.81,3.03005019]
[1746621492480,0.30217348,608.96,607.81,3.03005019]
[1746621492875,0.30217348,608.98,607.81,3.03005019]
[1746621511593,0.32841261,608.99,607.81,3.03005019]
[1746621512093,0.30218528,608.98,607.81,3.03005019]
[1746621523301,0.32841261,608.99,607.81,3.03005019]
[1746621523694,0.30218413,608.98,607.81,3.03005019]
[1746621524399,0.30218413,608.97,607.81,3.03005019]
[1746621524895,0.30218413,608.98,607.81,3.03005019]
[1746621527499,0.30218413,608.97,607.81,3.03005019]
[1746621527803,0.30218413,608.98,607.81,3.03005019]
[1746621538005,0.30218413,608.97,607.81,3.03005019]
[1746621538210,0.30218413,608.98,607.81,3.03005019]
[1746621538512,0.30218413,608.97,607.81,3.03005019]
[1746621538812,0.30218413,608.98,607.81,3.03005019]
[1746621539112,0.30218413,608.97,607.81,3.03005019]
[1746621539508,0.30218413,608.98,607.81,3.03005019]
[1746621548917,0.32841261,608.99,607.81,3.03005019]
[1746621549217,0.30212612,608.98,607.81,3.03005019]
[1746621558228,0.32841261,608.99,607.81,3.03005019]
[1746621558432,0.3021224,608.98,607.81,3.03005019]
[1746621561934,0.32841261,608.99,607.81,3.03005019]
[1746621562231,0.30212917,608.98,607.81,3.03005019]
[1746621564635,0.30212917,608.98,607.81,3.01692542]
[1746621578548,0.32841261,608.99,607.81,3.01692542]
[1746621578747,0.30212973,608.98,607.81,3.01692542]
[1746621583948,0.32841261,608.99,607.81,3.01692542]
[1746621584145,0.30212791,608.98,607.81,3.01692542]
[1746621586351,0.32841261,608.99,607.81,3.01692542]
[1746621586551,0.30212704,608.98,607.81,3.01692542]
[1746621587850,0.32841261,608.99,607.81,3.01692542]
[1746621588051,0.30212965,608.98,607.81,3.01692542]
[1746621589653,0.32841261,608.99,607.81,3.01692542]
[1746621589947,0.30212612,608.98,607.81,3.01692542]
[1746621614469,0.30206778,608.97,607.81,3.01692542]
[1746621618277,0.30206521,608.96,607.81,3.01692542]
[1746621620876,0.30206778,608.97,607.81,3.01692542]
[1746621620877,1.25355285,609.7,607.81,3.01692542]
[1746621621083,0.32804093,609.68,607.81,3.01692542]
[1746621630383,0.30205703,609.67,607.81,3.01692542]
[1746621630600,0.32805708,609.65,607.81,3.01692542]
[1746621636096,0.3020544,609.64,607.81,3.01692542]
[1746621636490,0.32807322,609.62,607.81,3.01692542]
[1746621636893,0.3020544,609.61,607.81,3.01692542]
[1746621637396,0.32808937,609.59,607.81,3.01692542]
[1746621637894,0.3020544,609.58,607.81,3.01692542]
[1746621638096,0.32810551,609.56,607.81,3.01692542]
[1746621638597,0.3020544,609.55,607.81,3.01692542]
[1746621638896,0.32811628,609.54,607.81,3.01692542]
[1746621639494,0.30203334,609.53,607.81,3.01692542]
[1746621639690,0.32812705,609.52,607.81,3.01692542]
[1746621639889,0.30203334,609.51,607.81,3.01692542]
[1746621640088,0.32813781,609.5,607.81,3.01692542]
[1746621640594,0.30203334,609.49,607.81,3.01692542]
[1746621640795,0.32814858,609.48,607.81,3.01692542]
[1746621641294,0.30203334,609.47,607.81,3.01692542]
[1746621641496,0.32815935,609.46,607.81,3.01692542]
[1746621641695,0.30203939,609.45,607.81,3.01692542]
[1746621641896,0.32817012,609.44,607.81,3.01692542]
[1746621642295,0.30203939,609.43,607.81,3.01692542]
[1746621642493,0.63022028,609.42,607.81,3.01692542]
[1746621642695,0.32818627,609.41,607.81,3.01692542]
[1746621642896,0.63022566,609.41,607.81,3.01692542]
[1746621643192,0.30203939,609.4,607.81,3.01692542]
[1746621643496,0.32819704,609.39,607.81,3.01692542]
[1746621643796,0.30203939,609.38,607.81,3.01692542]
[1746621643990,0.32820782,609.37,607.81,3.01692542]
[1746621644396,0.30203939,609.36,607.81,3.01692542]
[1746621644590,0.63025259,609.36,607.81,3.01692542]
[1746621644790,0.30203939,609.35,607.81,3.01692542]
[1746621653506,0.32822398,609.34,607.81,3.01692542]
[1746621653906,0.30203939,609.33,607.81,3.01692542]
[1746621654103,0.32823475,609.32,607.81,3.01692542]
[1746621654302,0.30203939,609.31,607.81,3.01692542]
[1746621654504,0.63027953,609.31,607.81,3.01692542]
[1746621655105,0.30203939,609.3,607.81,3.01692542]
[1746621658008,0.28597138,609.29,607.81,3.01692542]
[1746621658309,0.30203939,609.28,607.81,3.01692542]
[1746621663117,0.63029569,609.28,607.81,3.01692542]
[1746621663315,0.30203939,609.27,607.81,3.01692542]
[1746621664616,0.28598195,609.26,607.81,3.01692542]
[1746621664914,0.30203939,609.25,607.81,3.01692542]
[1746621667520,0.30203939,609.27,607.81,3.01692542]
[1746621667721,0.2859843,609.24,607.81,3.01692542]
[1746621668120,0.30203939,609.23,607.81,3.01692542]
[1746621673623,0.28598665,609.22,607.81,3.01692542]
[1746621673922,0.30203939,609.21,607.81,3.01692542]
[1746621676824,0.285989,609.2,607.81,3.01692542]
[1746621677326,0.30203939,609.19,607.81,3.01692542]
[1746621679626,0.30203939,609.27,607.81,3.01692542]
[1746621679825,0.2859843,609.18,607.81,3.01692542]
[1746621680223,0.30203939,609.26,607.81,3.01692542]
[1746621680425,0.30203939,609.17,607.81,3.01692542]
[1746621680624,0.30203939,609.26,607.81,3.01692542]
[1746621680923,0.30203939,609.25,607.81,3.01692542]
[1746621681232,0.30203939,609.24,607.81,3.01692542]
[1746621681425,0.58802487,609.24,607.81,3.01692542]
[1746621681623,0.30203939,609.23,607.81,3.01692542]
[1746621682123,0.30203939,609.22,607.81,3.01692542]
[1746621682526,0.30203939,609.21,607.81,3.01692542]
[1746621682723,0.58802839,609.21,607.81,3.01692542]
[1746621682924,0.285989,609.21,607.81,3.01692542]
[1746621683529,0.30208042,609.2,607.81,3.01692542]
[1746621683929,0.30208042,609.19,607.81,3.01692542]
[1746621684231,0.30208042,609.18,607.81,3.01692542]
[1746621684431,0.30208042,609.17,607.81,3.01692542]
[1746621684925,0.30208042,609.16,607.81,3.01692542]
[1746621685129,0.30208042,609.2,607.81,3.01692542]
[1746621685426,0.30208042,609.19,607.81,3.01692542]
[1746621685726,0.30208042,609.18,607.81,3.01692542]
[1746621687531,0.30208042,609.17,607.81,3.01692542]
[1746621687826,0.30208042,609.18,607.81,3.01692542]
[1746621691628,0.28599488,609.17,607.81,3.01692542]
[1746621692034,0.30208042,609.16,607.81,3.01692542]
[1746621694732,0.28599723,609.15,607.81,3.01692542]
[1746621695233,0.30208042,609.14,607.81,3.01692542]
[1746621700536,0.30208042,609.26,607.81,3.01692542]
[1746621700737,0.28599958,609.13,607.81,3.01692542]
[1746621700943,0.30208042,609.26,607.81,3.01692542]
[1746621701141,0.30208042,609.12,607.81,3.01692542]
[1746621701341,0.30208042,609.26,607.81,3.01692542]
[1746621701642,0.30208042,609.25,607.81,3.01692542]
[1746621702041,0.30208042,609.24,607.81,3.01692542]
[1746621702241,0.30208042,609.23,607.81,3.01692542]
[1746621702542,0.30208042,609.22,607.81,3.01692542]
[1746621702842,0.28598548,609.24,607.81,3.01692542]
[1746621703143,0.30207705,609.23,607.81,3.01692542]
[1746621703443,0.30207705,609.22,607.81,3.01692542]
[1746621703642,0.30207705,609.21,607.81,3.01692542]
[1746621704038,0.30207705,609.2,607.81,3.01692542]
[1746621704342,0.30207705,609.19,607.81,3.01692542]
[1746621704542,0.285989,609.22,607.81,3.01692542]
[1746621704842,0.30207798,609.21,607.81,3.01692542]
[1746621705242,0.30207798,609.2,607.81,3.01692542]
[1746621705543,0.30207798,609.19,607.81,3.01692542]
[1746621705744,0.30207798,609.18,607.81,3.01692542]
[1746621706243,0.30207798,609.17,607.81,3.01692542]
[1746621706438,0.30207798,609.21,607.81,3.01692542]
[1746621706945,0.30207798,609.2,607.81,3.01692542]
[1746621707643,0.30207798,609.19,607.81,3.01692542]
[1746621707946,0.30207798,609.21,607.81,3.01692542]
[1746621709545,0.30207798,609.26,607.81,3.01692542]
[1746621709746,0.28599135,609.2,607.81,3.01692542]
[1746621710042,0.30207798,609.19,607.81,3.01692542]
[1746621715649,0.2859843,609.18,607.81,3.01692542]
[1746621716050,0.30207798,609.17,607.81,3.01692542]
[1746621718551,0.28597725,609.16,607.81,3.01692542]
[1746621718751,0.30207798,609.15,607.81,3.01692542]
[1746621721146,0.28597725,609.16,607.81,3.01692542]
[1746621721348,0.32826169,609.27,607.81,3.01692542]
[1746621721547,0.30203961,609.15,607.81,3.01692542]
[1746621721852,0.30203961,609.14,607.81,3.01692542]
[1746621722052,0.30203961,609.26,607.81,3.01692542]
[1746621723154,0.28596668,609.25,607.81,3.01692542]
[1746621723453,0.30203961,609.24,607.81,3.01692542]
[1746621724552,0.30203961,609.26,607.81,3.01692542]
[1746621724755,0.28596903,609.23,607.81,3.01692542]
[1746621725055,0.30203961,609.22,607.81,3.01692542]
[1746621727654,0.28597138,609.21,607.81,3.01692542]
[1746621728355,0.30203961,609.2,607.81,3.01692542]
[1746621730657,0.28597373,609.19,607.81,3.01692542]
[1746621730958,0.30203961,609.18,607.81,3.01692542]
[1746621733158,0.28597373,609.19,607.81,3.01692542]
[1746621733359,0.32826169,609.27,607.81,3.01692542]
[1746621733658,0.58800712,609.18,607.81,3.01692542]
[1746621733958,0.30204044,609.18,607.81,3.01692542]
[1746621734560,0.30204044,609.17,607.81,3.01692542]
[1746621734859,0.30204044,609.26,607.81,3.01692542]
[1746621735256,0.28596668,609.16,607.81,3.01692542]
[1746621735458,0.30204044,609.15,607.81,3.01692542]
[1746621735761,0.28596785,609.15,607.81,3.01692542]
[1746621736157,0.30204044,609.14,607.81,3.01692542]
[1746621736757,0.28598078,609.13,607.81,3.01692542]
[1746621737257,0.30204044,609.12,607.81,3.01692542]
[1746621739667,0.28598313,609.11,607.81,3.01692542]
[1746621739861,0.30204256,609.1,607.81,3.01692542]
[1746621742666,0.28598548,609.09,607.81,3.01692542]
[1746621743263,0.30204256,609.08,607.81,3.01692542]
[1746621745671,0.28598783,609.07,607.81,3.01692542]
[1746621745966,0.30204256,609.06,607.81,3.01692542]
[1746621748572,0.30204256,609.26,607.81,3.01692542]
[1746621748969,0.28596433,609.05,607.81,3.01692542]
[1746621749170,0.30204256,609.25,607.81,3.01692542]
[1746621749370,0.30204256,609.04,607.81,3.01692542]
[1746621749572,0.30204256,609.26,607.81,3.01692542]
[1746621749872,0.30204256,609.25,607.81,3.01692542]
[1746621750269,0.30204256,609.26,607.81,3.01692542]
[1746621750474,0.28596433,609.24,607.81,3.01692542]
[1746621750975,0.30204256,609.23,607.81,3.01692542]
[1746621751678,0.28596785,609.22,607.81,3.01692542]
[1746621752076,0.30204256,609.21,607.81,3.01692542]
[1746621754877,0.28596433,609.2,607.81,3.01692542]
[1746621755377,0.30204256,609.19,607.81,3.01692542]
[1746621757681,0.28597255,609.18,607.81,3.01692542]
[1746621758181,0.30204256,609.17,607.81,3.01692542]
[1746621761181,0.28597255,609.18,607.81,3.01692542]
[1746621761380,0.30203956,609.17,607.81,3.01692542]
[1746621762783,0.28597255,609.18,607.81,3.01692542]
[1746621763083,0.3020398,609.17,607.81,3.01692542]
[1746621763680,0.2859749,609.16,607.81,3.01692542]
[1746621764085,0.3020398,609.15,607.81,3.01692542]
[1746621766684,0.28597725,609.14,607.81,3.01692542]
[1746621767185,0.3020398,609.13,607.81,3.01692542]
[1746621767690,0.28597725,609.14,607.81,3.01692542]
[1746621769391,0.32826169,609.27,607.81,3.01692542]
[1746621769590,0.30202541,609.26,607.81,3.01692542]
[1746621769790,0.28596433,609.13,607.81,3.01692542]
[1746621769990,0.30202541,609.26,607.81,3.01692542]
[1746621770191,0.32826169,609.27,607.81,3.01692542]
[1746621770893,0.30202664,609.26,607.81,3.01692542]
[1746621771192,0.58788996,609.26,607.81,3.01692542]
[1746621771591,0.30202664,609.25,607.81,3.01692542]
[1746621772691,0.2859655,609.24,607.81,3.01692542]
[1746621772987,0.30202664,609.23,607.81,3.01692542]
[1746621775592,0.30202664,609.26,607.81,3.01692542]
[1746621775785,0.28596785,609.22,607.81,3.01692542]
[1746621776293,0.30202664,609.21,607.81,3.01692542]
[1746621778293,0.28596785,609.22,607.81,3.01692542]
[1746621778495,0.30201619,609.21,607.81,3.01692542]
[1746621778694,0.58798052,609.21,607.81,3.01692542]
[1746621779091,0.30201619,609.2,607.81,3.01692542]
[1746621781090,0.28596433,609.21,607.81,3.01692542]
[1746621781394,0.3020219,609.2,607.81,3.01692542]
[1746621781694,0.28596433,609.2,607.81,3.01692542]
[1746621782197,0.3020219,609.19,607.81,3.01692542]
[1746621784693,0.28597255,609.18,607.81,3.01692542]
[1746621784998,0.3020219,609.17,607.81,3.01692542]
[1746621787693,0.2859749,609.16,607.81,3.01692542]
[1746621788200,0.3020219,609.15,607.81,3.01692542]
[1746621793703,0.28597725,609.14,607.81,3.01692542]
[1746621794201,0.3020219,609.13,607.81,3.01692542]
[1746621799902,0.2859796,609.12,607.81,3.01692542]
[1746621800106,0.5880015,609.12,607.81,3.01692542]
[1746621800406,0.3020219,609.11,607.81,3.01692542]
[1746621802706,0.3020219,609.26,607.81,3.01692542]
[1746621802907,0.28598078,609.1,607.81,3.01692542]
[1746621803106,0.3020219,609.26,607.81,3.01692542]
[1746621804402,0.28596198,609.25,607.81,3.01692542]
[1746621804803,0.3020219,609.24,607.81,3.01692542]
[1746621808612,0.32826169,609.27,607.81,3.01692542]
[1746621808811,0.28596433,609.23,607.81,3.01692542]
[1746621809406,0.30201883,609.22,607.81,3.01692542]
[1746621813912,0.28596433,609.23,607.81,3.01692542]
[1746621814308,0.30200945,609.22,607.81,3.01692542]
[1746621814712,0.58796908,609.22,607.81,3.01692542]
[1746621815013,0.28595963,609.22,607.81,3.01692542]
[1746621815308,0.30200945,609.21,607.81,3.01692542]
[1746621817714,0.2859655,609.2,607.81,3.01692542]
[1746621818314,0.30200945,609.19,607.81,3.01692542]
[1746621820716,0.28596785,609.18,607.81,3.01692542]
[1746621821118,0.30200945,609.17,607.81,3.01692542]
[1746621822015,0.28596785,609.18,607.81,3.01692542]
[1746621822313,0.30202341,609.17,607.81,3.01692542]
[1746621826820,0.2859796,609.16,607.81,3.01692542]
[1746621827120,0.30202341,609.15,607.81,3.01692542]
[1746621827519,0.2859796,609.16,607.81,3.01692542]
[1746621827920,0.30203821,609.15,607.81,3.01692542]
[1746621832724,0.28598195,609.14,607.81,3.01692542]
[1746621833119,0.30202674,609.13,607.81,3.01692542]
[1746621835722,0.2859843,609.12,607.81,3.01692542]
[1746621836221,0.30202674,609.11,607.81,3.01692542]
[1746621838031,0.2859843,609.12,607.81,3.01692542]
[1746621838430,0.32826169,609.27,607.81,3.01692542]
[1746621838626,0.30202815,609.11,607.81,3.01692542]
[1746621838831,0.58799718,609.11,607.81,3.01692542]
[1746621839031,0.30202815,609.1,607.81,3.01692542]
[1746621839530,0.30202815,609.26,607.81,3.01692542]
[1746621840234,0.28596903,609.25,607.81,3.01692542]
[1746621840432,0.30202815,609.24,607.81,3.01692542]
[1746621841734,0.28597138,609.23,607.81,3.01692542]
[1746621842135,0.30202815,609.22,607.81,3.01692542]
[1746621844734,0.28597373,609.21,607.81,3.01692542]
[1746621845434,0.30202815,609.2,607.81,3.01692542]
[1746621847632,0.28597608,609.19,607.81,3.01692542]
[1746621848138,0.30202815,609.18,607.81,3.01692542]
[1746621850735,0.28597843,609.17,607.81,3.01692542]
[1746621850939,0.30202815,609.16,607.81,3.01692542]
[1746621852841,0.28597843,609.17,607.81,3.01692542]
[1746621853040,0.30203153,609.16,607.81,3.01692542]
[1746621853641,0.30203153,609.26,607.81,3.01692542]
[1746621853841,0.28598078,609.15,607.81,3.01692542]
[1746621854041,0.30203153,609.14,607.81,3.01692542]
[1746621854243,0.30203153,609.26,607.81,3.01692542]
[1746621854743,0.32826169,609.27,607.81,3.01692542]
[1746621854943,0.30203114,609.26,607.81,3.01692542]
[1746621855342,0.28597373,609.25,607.81,3.01692542]
[1746621855642,0.30203114,609.24,607.81,3.01692542]
[1746621856641,0.32826169,609.27,607.81,3.01692542]
[1746621856840,0.2859796,609.23,607.81,3.01692542]
[1746621857040,0.30203039,609.22,607.81,3.01692542]
[1746621858448,0.2859796,609.23,607.81,3.01692542]
[1746621858744,0.30206358,609.22,607.81,3.01692542]
[1746621859646,0.30206358,609.26,607.81,3.01692542]
[1746621859846,0.28599253,609.21,607.81,3.01692542]
[1746621860144,0.30206358,609.2,607.81,3.01692542]
[1746621862645,0.30206358,609.25,607.81,3.01692542]
[1746621862846,0.28600663,609.19,607.81,3.01692542]
[1746621863246,0.30206358,609.18,607.81,3.01692542]
[1746621865246,0.28600663,609.19,607.81,3.01692542]
[1746621865450,0.3020918,609.18,607.81,3.01692542]
[1746621866450,0.28600663,609.19,607.81,3.01692542]
[1746621866748,0.30209216,609.18,607.81,3.01692542]
[1746621868950,0.58810114,609.17,607.81,3.01692542]
[1746621869245,0.30209216,609.16,607.81,3.01692542]
[1746621871752,0.30209216,609.23,607.81,3.01692542]
[1746621871953,0.28601133,609.15,607.81,3.01692542]
[1746621872154,0.63038079,609.22,607.81,3.01692542]
[1746621872355,0.32829402,609.21,607.81,3.01692542]